bitfinex-derivatives/quotes_BTCF0:USTF0_20250212
["timestamp","ask_amount","ask_price","bid_price","bid_amount"]
[1739341178349,0.6395923,95969.0,95968.0,0.009]
[1739341180655,0.2084345,95968.0,95959.0,0.00015624]
[1739341180954,0.43116,95969.0,95959.0,0.01133755]
[1739341180955,0.52542181,95969.0,95959.0,0.01133755]
[1739341181154,0.2084505,95961.0,95959.0,0.00015624]
[1739341182457,0.2084505,95961.0,95959.0,0.00615624]
[1739341184252,0.2094505,95961.0,95959.0,0.00615624]
[1739341184454,0.2094505,95961.0,95959.0,0.00015624]
[1739341184760,0.2104505,95961.0,95959.0,0.00615624]
[1739341188457,0.002,95961.0,95959.0,0.21460874]
[1739341190763,0.2084354,95968.0,95961.0,0.2084497]
[1739341191160,0.2084354,95968.0,95962.0,0.2084467]
[1739341192366,0.002,95968.0,95961.0,0.005]
[1739341192557,0.208447,95963.0,95961.0,0.005]
[1739341193074,0.208447,95963.0,95962.0,0.001]
[1739341193665,0.208447,95963.0,95962.0,0.007]
[1739341193867,0.210447,95963.0,95962.0,0.006]
[1739341194168,0.210447,95963.0,95961.0,0.001]
[1739341194464,0.211447,95963.0,95962.0,0.006]
[1739341195258,0.06836,95969.0,95959.0,0.00015624]
[1739341195460,0.2084485,95962.0,95961.0,0.006]
[1739341197460,0.2084519,95960.0,95959.0,0.00115624]
[1739341198161,0.2084519,95960.0,95959.0,0.00015624]
[1739341198558,0.2094519,95960.0,95959.0,0.00615624]
[1739341199162,0.2094519,95960.0,95959.0,0.00515624]
[1739341200462,0.001,95960.0,95959.0,0.00515624]
[1739341200677,0.06836,95971.0,95959.0,0.00515624]
[1739341200859,0.0311,95992.0,95977.0,0.208415]
[1739341201064,0.00015624,95978.0,95977.0,0.208415]
[1739341201265,0.00015624,95978.0,95977.0,0.203415]
[1739341201569,0.3608,96003.0,95976.0,0.062]
[1739341201762,0.06836,95999.0,95988.0,0.5691911]
[1739341202071,0.31191276,95991.0,95988.0,0.5691911]
[1739341203173,0.31191276,95991.0,95988.0,0.3608]
[1739341203364,0.2083872,95990.0,95988.0,0.3608]
[1739341203860,0.2083872,95990.0,95988.0,0.3628]
[1739341204260,0.2083872,95990.0,95988.0,0.002]
[1739341204463,0.00256336,95989.0,95988.0,0.002]
[1739341204868,0.2083911,95988.0,95981.0,0.01132871]
[1739341205174,0.2083911,95988.0,95980.0,0.0301]
[1739341205366,0.2083911,95988.0,95980.0,0.04135971]
[1739341206062,0.2083911,95988.0,95981.0,0.002]
[1739341206670,0.06992336,95989.0,95981.0,0.002]
[1739341206977,0.2084041,95983.0,95981.0,0.002]
[1739341207466,0.2084041,95983.0,95981.0,0.005]
[1739341207668,0.2084041,95983.0,95981.0,0.003]
[1739341208071,0.2084062,95982.0,95981.0,0.003]
[1739341208773,0.2064062,95982.0,95981.0,0.003]
[1739341209875,0.2084085,95980.0,95979.0,0.00015624]
[1739341211076,0.2084085,95980.0,95979.0,0.00415624]
[1739341211266,0.2410085,95980.0,95979.0,0.00415624]
[1739341211461,0.2410085,95980.0,95979.0,0.00015624]
[1739341212370,0.2460085,95980.0,95979.0,0.00115624]
[1739341212772,0.0376,95980.0,95956.0,0.2394599]
[1739341213072,0.2084454,95963.0,95958.0,0.01117115]
[1739341214077,0.2084454,95963.0,95962.0,0.3658]
[1739341214771,0.2084454,95963.0,95962.0,0.3608]
[1739341214984,0.2094454,95963.0,95962.0,0.3728]
[1739341215676,0.2094454,95963.0,95962.0,0.3658]
[1739341215875,0.2104454,95963.0,95962.0,0.3728]
[1739341216582,0.2094454,95963.0,95962.0,0.3648]
[1739341216874,0.2104454,95963.0,95962.0,0.009]
[1739341217276,0.2094454,95963.0,95962.0,0.008]
[1739341227184,0.5702454,95963.0,95962.0,0.008]
[1739341227388,0.208465,95954.0,95948.0,0.00156335]
[1739341228579,0.209465,95954.0,95953.0,0.00715624]
[1739341228779,0.242765,95954.0,95953.0,0.00715624]
[1739341229384,0.243765,95954.0,95953.0,0.00815624]
[1739341231182,0.243765,95954.0,95953.0,0.00115624]
[1739341231579,0.0353,95954.0,95930.0,0.0324]
[1739341231785,0.2084997,95939.0,95932.0,0.77228]
[1739341231982,0.208501,95938.0,95932.0,0.77228]
[1739341232788,0.2085034,95937.0,95935.0,0.37188667]
[1739341234489,0.2085034,95937.0,95935.0,0.004]
[1739341234490,0.2085062,95936.0,95935.0,0.004]
[1739341235878,0.2417062,95936.0,95935.0,0.004]
[1739341236082,0.2045134,95932.0,95928.0,0.01128817]
[1739341236279,0.2045134,95932.0,95927.0,0.03055633]
[1739341237599,0.2085165,95931.0,95927.0,0.03055633]
[1739341238098,0.2085196,95929.0,95927.0,0.03055633]
[1739341239593,0.2085196,95929.0,95927.0,0.00015633]
[1739341240295,0.2095196,95929.0,95927.0,0.00015633]
[1739341240897,0.2115196,95929.0,95927.0,0.00015633]
[1739341256203,0.2095196,95929.0,95927.0,0.00015633]
[1739341256403,0.2105196,95929.0,95927.0,0.00015633]
[1739341259402,0.0321,95928.0,95916.0,0.0313]
[1739341259708,0.3608,95924.0,95916.0,0.0313]
[1739341260213,0.2085454,95917.0,95916.0,0.0313]
[1739341260415,0.2769454,95917.0,95916.0,0.0313]
[1739341262516,0.2799454,95917.0,95916.0,0.0313]
[1739341265302,0.2085584,95911.0,95907.0,0.03285633]
[1739341265507,0.208565,95908.0,95907.0,0.00015633]
[1739341266310,0.208565,95908.0,95907.0,0.01109865]
[1739341266611,0.208565,95908.0,95907.0,0.00015633]
[1739341267214,0.209565,95908.0,95907.0,0.00015633]
[1739341267912,0.277965,95908.0,95907.0,0.00015633]
[1739341268127,0.2085802,95901.0,95900.0,0.1]
[1739341269209,0.2095802,95901.0,95900.0,0.1]
[1739341269515,0.2095802,95901.0,95900.0,0.11119531]
[1739341269911,0.2105802,95901.0,95900.0,0.11119531]
[1739341270218,0.2105802,95901.0,95900.0,0.1]
[1739341284326,0.2789802,95901.0,95900.0,0.1]
[1739341287931,0.2105802,95901.0,95900.0,0.1]
[1739341288232,0.2789802,95901.0,95900.0,0.1]
[1739341296735,0.0704,95901.0,95891.0,0.00015641]
[1739341296940,0.3608,95892.0,95891.0,0.00015641]
[1739341298027,0.3608,95892.0,95879.0,0.0616]
[1739341298238,0.2086245,95881.0,95879.0,0.0316]
[1739341298444,0.2770245,95881.0,95879.0,0.0316]
[1739341298837,0.6378245,95881.0,95879.0,0.0316]
[1739341299339,0.6388245,95881.0,95879.0,0.0316]
[1739341300243,0.6408245,95881.0,95879.0,0.0316]
[1739341302343,0.6388245,95881.0,95879.0,0.0316]
[1739341302544,0.65107432,95881.0,95879.0,0.0316]
[1739341303734,0.6398245,95881.0,95879.0,0.0316]
[1739341304835,0.2790245,95881.0,95879.0,0.0316]
[1739341315050,0.0704,95881.0,95879.0,0.0316]
[1739341315256,0.2790245,95881.0,95879.0,0.0316]
[1739341316153,0.2790245,95881.0,95874.0,0.0301]
[1739341316753,0.0684,95880.0,95874.0,0.0301]
[1739341318257,0.0694,95880.0,95874.0,0.0301]
[1739341319255,0.0714,95880.0,95874.0,0.0301]
[1739341320058,0.2800269,95880.0,95874.0,0.0301]
[1739341320261,0.0714,95880.0,95872.0,0.00156438]
[1739341321261,0.2086376,95875.0,95872.0,0.00156438]
[1739341321461,0.0714,95880.0,95872.0,0.00156438]
[1739341321649,0.2086445,95872.0,95870.0,0.00010439]
[1739341321854,0.0684,95871.0,95870.0,0.00010439]
[1739341323262,0.0704,95871.0,95870.0,0.00010439]
[1739341323859,0.0714,95871.0,95870.0,0.00010439]
[1739341326457,0.08220465,95871.0,95870.0,0.00010439]
[1739341327665,0.0714,95871.0,95870.0,0.00010439]
[1739341330070,0.003,95871.0,95870.0,0.00010439]
[1739341330269,0.0714,95871.0,95870.0,0.00010439]
[1739341332161,0.003,95871.0,95870.0,0.00010439]
[1739341343182,0.07136,95871.0,95870.0,0.00010439]
[1739341354992,0.003,95871.0,95870.0,0.00010439]
[1739341355989,0.57910159,95885.0,95870.0,0.00010439]
[1739341356193,0.21830159,95885.0,95884.0,0.2086171]
[1739341356692,0.24958622,95890.0,95886.0,0.2086128]
[1739341358785,0.00115641,95887.0,95886.0,0.2106128]
[1739341358982,0.00215641,95887.0,95886.0,0.2116128]
[1739341359989,0.00215641,95887.0,95886.0,0.5724128]
[1739341365599,0.3608,95903.0,95902.0,0.208578]
[1739341365994,0.01073685,95912.0,95905.0,0.2085713]
[1739341366188,0.06836,95916.0,95904.0,0.3608]
[1739341366493,0.06836,95916.0,95910.0,0.2085587]
[1739341366798,0.06836,95916.0,95911.0,0.2085564]
[1739341366991,0.06836,95916.0,95906.0,0.08235486]
[1739341367188,0.031,95919.0,95917.0,0.2085442]
[1739341367397,0.24958622,95920.0,95918.0,0.2085422]
[1739341367893,0.24958622,95920.0,95919.0,0.0331]
[1739341368998,0.25758622,95920.0,95919.0,0.0331]
[1739341369398,0.25858622,95920.0,95919.0,0.0331]
[1739341369893,0.25858622,95920.0,95919.0,0.04382052]
[1739341370486,0.25958622,95920.0,95919.0,0.04382052]
[1739341371296,0.01,95920.0,95919.0,0.04382052]
[1739341376901,0.01,95920.0,95919.0,0.01072052]
[1739341377102,0.01,95920.0,95918.0,0.2085422]
[1739341378205,0.001,95920.0,95918.0,0.21934334]
[1739341378402,0.008,95920.0,95918.0,0.21934334]
[1739341379403,0.008,95920.0,95918.0,0.22134334]
[1739341379903,0.00015641,95923.0,95918.0,0.01280114]
[1739341380100,0.001,95920.0,95919.0,0.2085394]
[1739341381707,0.002,95920.0,95919.0,0.2085394]
[1739341382306,0.002,95920.0,95919.0,0.002]
[1739341382707,0.002,95920.0,95918.0,0.01080114]
[1739341382910,0.002,95920.0,95919.0,0.002]
[1739341383805,0.001,95920.0,95919.0,0.002]
[1739341384003,0.001,95920.0,95919.0,0.210541]
[1739341384603,0.004,95920.0,95919.0,0.211541]
[1739341384798,0.0684,95937.0,95919.0,0.003]
[1739341385008,0.28769258,95946.0,95932.0,0.2085117]
[1739341385212,0.21933258,95946.0,95932.0,0.2085117]
[1739341385411,0.2084833,95946.0,95932.0,0.2085117]
[1739341386103,0.36095641,95943.0,95932.0,0.2085117]
[1739341386710,0.36095641,95943.0,95932.0,0.2105117]
[1739341387101,0.00015641,95943.0,95941.0,0.2084912]
[1739341388212,0.00715641,95943.0,95941.0,0.2094912]
[1739341388419,0.00715641,95943.0,95941.0,0.001]
[1739341392519,0.00715641,95943.0,95942.0,0.2084909]
[1739341392724,0.00715641,95943.0,95942.0,0.2393909]
[1739341393423,0.3608,95962.0,95959.0,0.208453]
[1739341394123,0.3608,95962.0,95960.0,0.2084507]
[1739341394913,0.3758,95962.0,95960.0,0.2084507]
[1739341395624,0.3608,95962.0,95960.0,0.2084507]
[1739341395816,0.3758,95962.0,95960.0,0.2094507]
[1739341396016,0.3818,95962.0,95960.0,0.2094507]
[1739341396524,0.021,95962.0,95960.0,0.2094507]
[1739341400623,0.021,95962.0,95960.0,0.001]
[1739341401123,0.2294495,95962.0,95960.0,0.001]
[1739341408125,0.06828,95961.0,95960.0,0.001]
[1739341409825,0.07428,95961.0,95960.0,0.001]
[1739341410023,0.07428,95961.0,95951.0,0.00015633]
[1739341410225,0.08928,95961.0,95960.0,0.001]
[1739341411025,0.2084528,95960.0,95951.0,0.00115633]
[1739341411928,0.2084546,95959.0,95951.0,0.00115633]
[1739341412529,0.2084568,95958.0,95951.0,0.00115633]
[1739341413031,0.003,95960.0,95951.0,0.00015633]
[1739341413232,0.2084592,95957.0,95951.0,0.00015633]
[1739341413834,0.2084592,95957.0,95951.0,0.00115633]
[1739341414228,0.2084613,95956.0,95951.0,0.00115633]
[1739341414441,0.3608,95984.0,95955.0,0.3608]
[1739341414638,0.0313,95992.0,95980.0,0.208407]
[1739341415728,0.00356342,95982.0,95980.0,0.208407]
[1739341417022,0.00356342,95982.0,95980.0,0.21922917]
[1739341417424,0.00015633,95991.0,95980.0,0.01182217]
[1739341417628,0.00015633,95991.0,95990.0,0.2083867]
[1739341418939,0.00515633,95991.0,95990.0,0.2083867]
[1739341419238,0.00815633,95991.0,95990.0,0.2083867]
[1739341419829,0.00515633,95991.0,95990.0,0.2083867]
[1739341420029,0.00815633,95991.0,95990.0,0.2093867]
[1739341420730,0.00515633,95991.0,95990.0,0.2233867]
[1739341421037,0.00115633,95991.0,95990.0,0.2293867]
[1739341421233,0.00115633,95991.0,95990.0,0.24035665]
[1739341421436,0.01620432,96008.0,95990.0,0.02596995]
[1739341421636,0.001,95991.0,95990.0,0.3666648]
[1739341421831,0.001,95991.0,95990.0,0.24135665]
[1739341422033,0.3608,96001.0,95990.0,0.2233867]
[1739341422323,0.3608,96001.0,95990.0,0.2303867]
[1739341422324,0.001,95991.0,95990.0,0.2303867]
[1739341423030,0.001,95991.0,95990.0,0.2273867]
[1739341423730,0.001,95991.0,95990.0,0.2293867]
[1739341424338,0.42908,96001.0,95990.0,0.2223867]
[1739341424532,0.063,96000.0,95990.0,0.2293867]
[1739341424931,0.063,96000.0,95991.0,0.2083826]
[1739341426440,0.13128,96000.0,95991.0,0.2083826]
[1739341426740,0.3608,95999.0,95991.0,0.2093826]
[1739341427133,0.3608,95999.0,95991.0,0.2113826]
[1739341428725,0.3608,95999.0,95991.0,0.2093826]
[1739341429034,0.3608,95999.0,95991.0,0.2103826]
[1739341429537,0.3608,95999.0,95991.0,0.2093826]
[1739341430040,0.2083817,95993.0,95991.0,0.001]
[1739341430536,0.06828,95992.0,95991.0,0.001]
[1739341430741,0.2766635,95992.0,95991.0,0.001]
[1739341431134,0.06828,95992.0,95973.0,0.2084222]
[1739341431439,0.3608,95985.0,95973.0,0.2084222]
[1739341432540,0.3608,95985.0,95973.0,0.2114222]
[1739341432935,0.3608,95985.0,95973.0,0.2144222]
[1739341433140,0.5691988,95985.0,95973.0,0.2144222]
[1739341433336,0.3608,95985.0,95973.0,0.006]
[1739341433543,0.2084087,95980.0,95973.0,0.006]
[1739341433836,0.032,95979.0,95973.0,0.003]
[1739341434043,0.032,95979.0,95973.0,0.006]
[1739341434438,0.032,95979.0,95973.0,0.004]
[1739341434835,0.2734125,95979.0,95973.0,0.001]
[1739341435142,0.2734125,95979.0,95973.0,0.002]
[1739341436534,0.2744125,95979.0,95973.0,0.001]
[1739341436846,0.2744125,95979.0,95971.0,0.00015633]
[1739341437038,0.2744125,95979.0,95973.0,0.001]
[1739341438046,0.2744125,95979.0,95971.0,0.00015633]
[1739341438247,0.2744125,95979.0,95973.0,0.001]
[1739341438631,0.2734125,95979.0,95973.0,0.001]
[1739341438944,0.2744125,95979.0,95973.0,0.001]
[1739341440040,0.2744125,95979.0,95971.0,0.21058263]
[1739341440446,0.2744125,95979.0,95973.0,0.001]
[1739341440946,0.2744125,95979.0,95971.0,0.20858263]
[1739341441139,0.2744125,95979.0,95973.0,0.002]
[1739341441543,0.2734125,95979.0,95973.0,0.003]
[1739341442048,0.2734125,95979.0,95973.0,0.2114219]
[1739341442651,0.2734125,95979.0,95973.0,0.2094219]
[1739341443940,0.2734125,95979.0,95973.0,0.2084219]
[1739341444636,0.2734125,95979.0,95973.0,0.2124219]
[1739341445145,0.2734125,95979.0,95973.0,0.2104219]
[1739341445345,0.2734125,95979.0,95973.0,0.2094219]
[1739341445540,0.2734125,95979.0,95973.0,0.2104219]
[1739341446845,0.28424409,95979.0,95973.0,0.2104219]
[1739341447147,0.07583159,95979.0,95973.0,0.002]
[1739341447351,0.3608,95974.0,95973.0,0.002]
[1739341447746,0.3608,95974.0,95971.0,0.00015633]
[1739341447944,0.2084236,95973.0,95971.0,0.00015633]
[1739341448851,0.2084236,95973.0,95971.0,0.00115633]
[1739341449749,0.2084236,95973.0,95971.0,0.00215633]
[1739341452356,0.2084574,95958.0,95949.0,0.208474]
[1739341452655,0.3608,95956.0,95949.0,0.208474]
[1739341453558,0.3608,95956.0,95951.0,0.021]
[1739341454162,0.3618,95956.0,95951.0,0.015]
[1739341454663,0.3618,95956.0,95951.0,0.021]
[1739341455458,0.3618,95956.0,95951.0,0.006]
[1739341455968,0.5702617,95956.0,95951.0,0.006]
[1739341456361,0.5702617,95956.0,95951.0,0.021]
[1739341460770,0.2084651,95954.0,95951.0,0.021]
[1739341461867,0.2084651,95954.0,95951.0,0.02]
[1739341462773,0.2084651,95954.0,95951.0,0.006]
[1739341462964,0.2084651,95954.0,95951.0,0.021]
[1739341463770,0.36136001,95956.0,95951.0,0.015]
[1739341463961,0.3608,95956.0,95951.0,0.021]
[1739341464163,0.2084651,95954.0,95951.0,0.021]
[1739341464567,0.2084651,95954.0,95951.0,0.006]
[1739341464773,0.2084651,95954.0,95951.0,0.019]
[1739341467672,0.2084692,95952.0,95951.0,0.019]
[1739341470883,0.2767492,95952.0,95951.0,0.019]
[1739341479477,0.6375492,95952.0,95951.0,0.019]
[1739341483490,0.6375492,95952.0,95951.0,0.006]
[1739341483688,0.6375492,95952.0,95951.0,0.019]
[1739341483888,0.2084865,95944.0,95943.0,0.00015633]
[1739341484195,0.2085017,95937.0,95936.0,0.00156342]
[1739341484381,0.2767817,95937.0,95936.0,0.00156342]
[1739341485187,0.2085152,95931.0,95920.0,0.39664535]
[1739341485384,0.2085152,95931.0,95927.0,0.03245633]
[1739341485985,0.06828,95937.0,95927.0,0.03245633]
[1739341486179,0.208518,95930.0,95927.0,0.03245633]
[1739341486383,0.208518,95930.0,95927.0,0.03845633]
[1739341486893,0.2085201,95929.0,95927.0,0.03845633]
[1739341487396,0.2085201,95929.0,95927.0,0.04945633]
[1739341488191,0.2085201,95929.0,95927.0,0.04845633]
[1739341489796,0.2095201,95929.0,95927.0,0.04845633]
[1739341494793,0.2095201,95929.0,95927.0,0.01615633]
[1739341502206,0.2085496,95915.0,95910.0,0.01071791]
[1739341502406,0.2085496,95915.0,95909.0,0.0305]
[1739341502710,0.2085496,95915.0,95904.0,0.77252]
[1739341503006,0.2085496,95915.0,95905.0,0.01067617]
[1739341503403,0.2095496,95915.0,95914.0,0.3758]
[1739341504408,0.2105496,95915.0,95914.0,0.3828]
[1739341504801,0.2105496,95915.0,95914.0,0.022]
[1739341505110,0.2211162,95915.0,95914.0,0.022]
[1739341513214,0.002,95915.0,95914.0,0.022]
[1739341524717,0.07028,95915.0,95914.0,0.022]
[1739341526825,0.2085691,95906.0,95905.0,0.00015633]
[1739341528134,0.2095691,95906.0,95905.0,0.00615633]
[1739341528634,0.2105691,95906.0,95905.0,0.00815633]
[1739341530031,0.2095691,95906.0,95905.0,0.00315633]
[1739341530529,0.22020969,95906.0,95905.0,0.00315633]
[1739341541038,0.58100969,95906.0,95905.0,0.00315633]
[1739341542044,0.20858,95901.0,95900.0,0.1]
[1739341542341,0.2086198,95883.0,95880.0,0.08223563]
[1739341542645,0.2086198,95883.0,95877.0,0.39446]
[1739341543243,0.2086198,95883.0,95877.0,0.03366]
[1739341543437,0.2086198,95883.0,95877.0,0.0323]
[1739341543639,0.2086247,95881.0,95880.0,0.001]
[1739341544146,0.2086278,95879.0,95878.0,0.0333]
[1739341544344,0.2086278,95879.0,95878.0,0.0343]
[1739341544736,0.2066278,95879.0,95878.0,0.0323]
[1739341545740,0.2066278,95879.0,95878.0,0.0313]
[1739341546244,0.2086278,95879.0,95878.0,0.0313]
[1739341546452,0.2096278,95879.0,95878.0,0.0313]
[1739341550146,0.2086278,95879.0,95878.0,0.0313]
[1739341554756,0.2086322,95877.0,95876.0,0.36202278]
[1739341556250,0.2106322,95877.0,95876.0,0.36202278]
[1739341557352,0.2106322,95877.0,95876.0,0.3608]
[1739341561057,0.2211158,95877.0,95876.0,0.3608]
[1739341562643,0.208643,95872.0,95871.0,0.00015641]
[1739341563650,0.210643,95872.0,95871.0,0.00015641]
[1739341564859,0.211643,95872.0,95871.0,0.00015641]
[1739341565455,0.209643,95872.0,95871.0,0.00015641]
[1739341575871,0.277923,95872.0,95871.0,0.00015641]
[1739341578367,0.277923,95872.0,95850.0,0.29092473]
[1739341578368,0.06928,95872.0,95850.0,0.2086891]
[1739341578566,0.08223563,95860.0,95846.0,0.0631]
[1739341578764,0.2086831,95854.0,95851.0,0.3608]
[1739341579486,0.00015641,95862.0,95851.0,0.3608]
[1739341580065,0.2086741,95858.0,95851.0,0.3608]
[1739341580675,0.2086771,95857.0,95851.0,0.3608]
[1739341580867,0.2086771,95857.0,95851.0,0.569487]
[1739341581074,0.2086771,95857.0,95851.0,0.3608]
[1739341581275,0.2086771,95857.0,95855.0,0.2086796]
[1739341581472,0.2086771,95857.0,95856.0,0.0316]
[1739341582373,0.2116771,95857.0,95856.0,0.0316]
[1739341584969,0.2116771,95857.0,95856.0,0.0420655]
[1739341589885,0.003,95857.0,95856.0,0.0420655]
[1739341590176,0.2086376,95875.0,95856.0,0.1103455]
[1739341590376,0.208641,95873.0,95868.0,0.3608]
[1739341592178,0.209641,95873.0,95868.0,0.3608]
[1739341592380,0.001,95873.0,95868.0,0.3608]
[1739341592579,0.001,95873.0,95868.0,0.56945]
[1739341593070,0.001,95873.0,95871.0,0.2086441]
[1739341596081,0.001,95873.0,95871.0,0.2106441]
[1739341612789,0.032,95872.0,95871.0,0.2106441]
[1739341613494,0.0641,95872.0,95871.0,0.2106441]
[1739341614095,0.0651,95872.0,95871.0,0.2096441]
[1739341622506,0.033,95872.0,95871.0,0.2096441]
[1739341622705,0.00015641,95880.0,95871.0,0.001]
[1739341622904,0.001,95872.0,95871.0,0.2096452]
[1739341623102,0.00015641,95880.0,95879.0,0.2086278]
[1739341623312,0.00015641,95880.0,95879.0,0.5694278]
[1739341625505,0.00015641,95880.0,95879.0,0.5704278]
[1739341625711,0.00015641,95880.0,95879.0,0.5724278]
[1739341626515,0.00015641,95880.0,95879.0,0.58325331]
[1739341631204,0.0305,95889.0,95879.0,0.58325331]
[1739341631405,0.0305,95889.0,95887.0,0.3608]
[1739341634524,0.0355,95889.0,95887.0,0.3618]
[1739341637416,0.2441075,95889.0,95887.0,0.3618]
[1739341638014,0.42904,95888.0,95865.0,0.2086565]
[1739341638216,0.29086293,95880.0,95865.0,0.2086565]
[1739341638527,0.033,95879.0,95867.0,0.01051243]
[1739341639028,0.033,95879.0,95865.0,0.2086565]
[1739341639325,0.2086344,95876.0,95869.0,0.3708]
[1739341639518,0.033,95879.0,95869.0,0.3708]
[1739341639717,0.2086397,95874.0,95869.0,0.3708]
[1739341639922,0.0326,95873.0,95869.0,0.3708]
[1739341640327,0.0324,95872.0,95869.0,0.3688]
[1739341641520,0.0324,95872.0,95869.0,0.3668]
[1739341642121,0.0324,95872.0,95869.0,0.3628]
[1739341642427,0.0324,95872.0,95869.0,0.3638]
[1739341646924,0.0324,95872.0,95869.0,0.003]
[1739341647228,0.06824,95877.0,95869.0,0.003]
[1739341647430,0.2086464,95871.0,95869.0,0.003]
[1739341648825,0.2086464,95871.0,95869.0,0.002]
[1739341649032,0.2086464,95871.0,95869.0,0.003]
[1739341650420,0.2402464,95871.0,95869.0,0.003]
[1739341660539,0.2402464,95871.0,95869.0,0.004]
[1739341660841,0.2402464,95871.0,95869.0,0.003]
[1739341661041,0.2412464,95871.0,95869.0,0.006]
[1739341661843,0.2402464,95871.0,95869.0,0.004]
[1739341662051,0.2402464,95871.0,95869.0,0.003]
[1739341663839,0.06824,95870.0,95869.0,0.003]
[1739341664836,0.06824,95870.0,95869.0,0.002]
[1739341665132,0.06824,95870.0,95869.0,0.003]
[1739341671237,0.07881179,95870.0,95869.0,0.003]
[1739341674437,0.06824,95870.0,95869.0,0.003]
[1739341674936,0.2086464,95871.0,95869.0,0.003]
[1739341675937,0.2086464,95871.0,95869.0,0.001]
[1739341676145,0.2086464,95871.0,95869.0,0.003]
[1739341676350,0.3608,95872.0,95871.0,0.2086453]
[1739341678353,0.3618,95872.0,95869.0,0.002]
[1739341678643,0.3618,95872.0,95864.0,0.2086591]
[1739341678644,0.3618,95872.0,95871.0,0.001]
[1739341680138,0.3608,95872.0,95871.0,0.001]
[1739341680945,0.3618,95872.0,95871.0,0.001]
[1739341684952,0.001,95872.0,95871.0,0.001]
[1739341685659,0.07765269,95872.0,95871.0,0.001]
[1739341686848,0.07665269,95872.0,95871.0,0.01177825]
[1739341687153,0.07665269,95872.0,95871.0,0.01477825]
[1739341687650,0.07665269,95872.0,95871.0,0.01177825]
[1739341687851,0.07665269,95872.0,95871.0,0.01377825]
[1739341688054,0.07665269,95872.0,95871.0,0.01477825]
[1739341688853,0.00015641,95881.0,95871.0,0.01477825]
[1739341689052,0.00015641,95881.0,95875.0,0.2086357]
[1739341689257,0.00015641,95881.0,95876.0,0.0327]
[1739341689659,0.00015641,95881.0,95877.0,0.0305]
[1739341690055,0.00015641,95881.0,95878.0,0.0313]
[1739341690753,0.00415641,95881.0,95878.0,0.0313]
[1739341691954,0.00515641,95881.0,95878.0,0.0313]
[1739341692259,0.00615641,95881.0,95878.0,0.001]
[1739341703273,0.2086278,95879.0,95878.0,0.001]
[1739341704467,0.2086366,95875.0,95874.0,0.3608]
[1739341705578,0.2106366,95875.0,95874.0,0.3618]
[1739341705767,0.2106366,95875.0,95874.0,0.001]
[1739341707171,0.01509178,95875.0,95861.0,0.00015641]
[1739341707375,0.2086557,95867.0,95861.0,0.00015641]
[1739341707775,0.2086573,95866.0,95861.0,0.00015641]
[1739341708178,0.2086573,95866.0,95861.0,0.00615641]
[1739341708579,0.2086573,95866.0,95861.0,0.01015641]
[1739341708887,0.2086573,95866.0,95861.0,0.00415641]
[1739341709187,0.2096573,95866.0,95861.0,0.01015641]
[1739341712588,0.2086595,95865.0,95861.0,0.01015641]
[1739341712788,0.2086614,95864.0,95861.0,0.01015641]
[1739341713989,0.2086614,95864.0,95861.0,0.00915641]
[1739341714584,0.2086649,95862.0,95861.0,0.00915641]
[1739341714985,0.2086649,95862.0,95861.0,0.00515641]
[1739341715188,0.2086649,95862.0,95861.0,0.00915641]
[1739341716678,0.2086649,95862.0,95861.0,0.00415641]
[1739341716992,0.2096649,95862.0,95861.0,0.01015641]
[1739341749998,0.001,95862.0,95861.0,0.01015641]
[1739341773517,0.0203152,95864.0,95861.0,0.01015641]
[1739341773715,0.0682,95869.0,95861.0,0.01015641]
[1739341774224,0.208661,95864.0,95861.0,0.01015641]
[1739341774917,0.209661,95864.0,95861.0,0.01015641]
[1739341797641,0.2086634,95863.0,95861.0,0.01015641]
[1739341799343,0.2096634,95863.0,95861.0,0.01115641]
[1739341822564,0.2086734,95859.0,95849.0,0.2086916]
[1739341823154,0.208689,95851.0,95842.0,0.2418076]
[1739341823366,0.16447126,95860.0,95842.0,0.04514743]
[1739341823556,0.2086948,95849.0,95837.0,0.42726198]
[1739341823763,0.2086948,95849.0,95844.0,0.0001565]
[1739341823966,0.208701,95846.0,95844.0,0.0001565]
[1739341824459,0.201701,95846.0,95844.0,0.0001565]
[1739341824960,0.002,95849.0,95844.0,0.0141565]
[1739341825160,0.002,95849.0,95845.0,0.4247]
[1739341825659,0.002,95849.0,95846.0,0.2086975]
[1739341826458,0.001,95849.0,95846.0,0.2086975]
[1739341826962,0.08223563,95860.0,95846.0,0.2086975]
[1739341827154,0.08223563,95860.0,95850.0,0.08223563]
[1739341827360,0.2086758,95857.0,95850.0,0.08223563]
[1739341828155,0.001,95849.0,95846.0,0.006]
[1739341828364,0.2096942,95849.0,95846.0,0.006]
[1739341831159,0.2086942,95849.0,95845.0,0.3608]
[1739341831855,0.2086942,95849.0,95844.0,0.0001565]
[1739341832055,0.2096942,95849.0,95846.0,0.006]
[1739341832559,0.001,95849.0,95846.0,0.006]
[1739341832756,0.2086975,95847.0,95846.0,0.006]
[1739341832962,0.5694975,95847.0,95846.0,0.006]
[1739341833657,0.3608,95847.0,95844.0,0.0001565]
[1739341833857,0.2087019,95845.0,95844.0,0.0001565]
[1739341835552,0.2097019,95845.0,95844.0,0.0061565]
[1739341838573,0.2087239,95835.0,95832.0,0.00122347]
[1739341839171,0.2087313,95832.0,95830.0,0.3608]
[1739341839867,0.2087313,95832.0,95822.0,0.0628]
[1739341840258,0.2087336,95831.0,95822.0,0.0628]
[1739341840461,0.3608,95829.0,95821.0,0.00010474]
[1739341840671,0.42892,95829.0,95821.0,0.00010474]
[1739341841770,0.43092,95829.0,95821.0,0.00010474]
[1739341842458,0.3628,95829.0,95824.0,0.2087462]
[1739341842655,0.3628,95829.0,95825.0,0.0305]
[1739341843159,0.002,95829.0,95826.0,0.0324]
[1739341843355,0.002,95829.0,95827.0,0.0322]
[1739341843561,0.001,95829.0,95827.0,0.0322]
[1739341844363,0.004,95829.0,95827.0,0.0322]
[1739341846368,0.003,95829.0,95827.0,0.0322]
[1739341850270,0.2087222,95836.0,95827.0,0.0322]